fUSD/lending_fUSD_20240704
["ID","MTS","AMOUNT","RATE_DAILY","PERIOD"]
[331172891,1720117846908,-152.34506416,0.00022432,2]
[331172893,1720117846917,-3600.93142325,0.00022432,2]
[331172895,1720117846927,-343.17626663,0.00022435,2]
[331172897,1720117846936,-156.07649358,0.00022441,2]
[331172899,1720117846945,-153.66595411,0.00022445,2]
[331172901,1720117846956,-153.66595411,0.00022447,2]
[331172903,1720117846966,-156.07649358,0.0002245,2]
[331172905,1720117846975,-343.17626663,0.00022465,2]
[331172907,1720117846984,-1191.94,0.00022467,4]
[331172909,1720117846993,-1235.5,0.00022467,4]
[331172911,1720117847002,-1239.97,0.00022467,4]
[331172913,1720117847011,-500.0,0.00022468,2]
[331172915,1720117847021,-500.0,0.00022468,2]
[331172917,1720117847030,-500.0,0.00022468,2]
[331172919,1720117847040,-500.0,0.00022468,2]
[331172921,1720117847049,-500.0,0.00022468,2]
[331172923,1720117847060,-925.61,0.00022478,2]
[331172925,1720117847070,-270.35,0.0002248,30]
[331172927,1720117847079,-500.0,0.00022483,4]
[331172929,1720117847089,-500.0,0.00022483,4]
[331172931,1720117847098,-500.0,0.00022483,4]
[331172933,1720117847108,-500.0,0.00022483,4]
[331172935,1720117847117,-500.0,0.00022483,4]
[331172937,1720117847126,-500.0,0.00022483,4]
[331172939,1720117847136,-343.17626663,0.00022483,2]
[331172941,1720117847145,-500.0,0.00022483,4]
[331172943,1720117847154,-500.0,0.00022483,4]
[331172945,1720117847164,-500.0,0.00022483,4]
[331172947,1720117847174,-500.0,0.00022483,4]
[331172949,1720117847184,-500.0,0.00022483,4]
[331172952,1720117847194,-500.0,0.00022483,4]
[331172954,1720117847205,-500.0,0.00022483,4]
[331172956,1720117847214,-500.0,0.00022484,4]
[331172958,1720117847224,-633.12,0.00022484,4]
[331172960,1720117847233,-633.12,0.00022484,4]
[331172961,1720117847242,-633.12,0.00022484,4]
[331172963,1720117847252,-633.12,0.00022484,4]
[331172965,1720117847262,-633.14970907,0.00022484,4]
[331172967,1720117847271,-151.0,0.00022484,7]
[331172969,1720117847280,-151.0,0.00022484,7]
[331172971,1720117847290,-169.93973,0.00022484,7]
[331172973,1720117847299,-169.93973,0.00022484,7]
[331172975,1720117847308,-151.0,0.00022484,7]
[331172977,1720117847318,-151.0,0.00022484,7]
[331172978,1720117847327,-151.0,0.00022484,7]
[331172979,1720117847336,-500.0,0.00022484,4]
[331172980,1720117847346,-1427.13,0.00022484,4]
[331172981,1720117847355,-500.0,0.00022484,4]
[331172982,1720117847365,-10664.3102774,0.00022484,2]
[331172983,1720117847375,-1191.94,0.00022484,4]
[331172984,1720117847384,-1235.5,0.00022484,4]
[331172985,1720117847394,-500.0,0.00022484,4]
[331172986,1720117847403,-62226.658342,0.00022484,2]
[331172988,1720117847413,-1391.5,0.00022484,4]
[331172989,1720117847422,-649.35,0.00022484,4]
[331172992,1720117847432,-3920.75,0.00022484,4]
[331172994,1720117847441,-4658.2205217,0.00022484,2]
[331172996,1720117847451,-500.0,0.00022484,4]
[331172997,1720117847460,-151.0,0.00022485,7]
[331172999,1720117847469,-157.762428,0.00022485,7]
[331173002,1720117847479,-157.762428,0.00022485,7]
[331173004,1720117847488,-151.0,0.00022485,7]
[331173006,1720117847497,-243.883889,0.00022485,7]
[331173008,1720117847507,-243.883889,0.00022485,7]
[331173010,1720117847516,-151.0,0.00022485,7]
[331173011,1720117847525,-151.0,0.00022485,7]
[331173014,1720117847535,-151.0,0.00022485,7]
[331173016,1720117847545,-247.246256,0.00022485,7]
[331173018,1720117847554,-151.0,0.00022485,7]
[331173020,1720117847563,-151.0,0.00022485,7]
[331173022,1720117847577,-151.0,0.00022485,7]
[331173024,1720117847587,-151.0,0.00022485,7]
[331173026,1720117847596,-306.662129,0.00022485,7]
[331173028,1720117847605,-306.662129,0.00022485,7]
[331173029,1720117847615,-241.204496,0.00022485,7]
[331173031,1720117847625,-241.204496,0.00022485,7]
[331173033,1720117847634,-333.59866,0.00022485,7]
[331173036,1720117847644,-333.59866,0.00022485,7]
[331173037,1720117847653,-282.674538,0.00022485,7]
[331173040,1720117847664,-151.0,0.00022485,7]
[331173042,1720117847673,-282.674538,0.00022485,7]
[331173044,1720117847682,-151.0,0.00022485,7]
[331173046,1720117847691,-151.0,0.00022485,7]
[331173048,1720117847701,-2260.054881,0.00022485,7]
[331173050,1720117847710,-151.0,0.00022485,7]
[331173052,1720117847720,-2260.054881,0.00022485,7]
[331173068,1720117847866,-151.0,0.00022485,7]
[331173070,1720117847876,-9292.7125196,0.00022485,2]
[331173072,1720117847885,-7921.1147618,0.00022485,2]
[331173074,1720117847895,-6549.517004,0.00022485,2]
[331173076,1720117847904,-5177.9192462,0.00022485,2]
[331173078,1720117847914,-151.0,0.00022485,7]
[331173080,1720117847924,-151.0,0.00022485,7]
[331173083,1720117847934,-1457.296038,0.00022485,7]
[331173085,1720117847943,-1457.296038,0.00022485,7]
[331173086,1720117847954,-200.133486,0.00022485,7]
[331173088,1720117847964,-151.0,0.00022485,7]
[331173091,1720117847973,-54223.3329664,0.00022485,2]
[331173093,1720117847982,-46220.0075908,0.00022485,2]
[331173095,1720117847992,-38216.6822152,0.00022485,2]
[331173097,1720117848002,-30213.3568396,0.00022485,2]
[331173099,1720117848011,-223.84138,0.00022485,7]
[331173101,1720117848020,-223.84138,0.00022485,7]
[331173103,1720117848029,-4059.100217,0.00022485,2]
[331173105,1720117848038,-3459.9799123,0.00022485,2]
[331173107,1720117848047,-2860.8596076,0.00022485,2]
[331173108,1720117848056,-2261.7393029,0.00022485,2]
[331173110,1720117848066,-171.193417,0.00022485,7]
[331173112,1720117848075,-171.193417,0.00022485,7]
[331173114,1720117848085,-380.645891,0.00022485,7]
[331173117,1720117848094,-380.645891,0.00022485,7]
[331173119,1720117848103,-595.22133576,0.00022492,2]
[331173121,1720117848112,-150.0,0.00022495,2]
[331173123,1720117848122,-500.0,0.00022496,4]
[331173125,1720117848131,-500.0,0.00022496,4]
[331173126,1720117848140,-500.0,0.00022496,4]
[331173129,1720117848150,-500.0,0.00022496,4]
[331173131,1720117848159,-500.0,0.00022496,4]
[331173133,1720117848168,-500.0,0.00022496,4]
[331173135,1720117848178,-500.0,0.00022496,4]
[331173137,1720117848187,-500.0,0.00022496,4]
[331173139,1720117848197,-500.0,0.00022496,4]
[331173141,1720117848210,-500.0,0.00022496,4]
[331173143,1720117848219,-500.0,0.00022496,4]
[331173145,1720117848228,-307.19,0.00022496,4]
[331173147,1720117848237,-500.0,0.00022496,4]
[331173149,1720117848251,-500.0,0.00022497,4]
[331173151,1720117848262,-500.0,0.00022497,4]
[331173153,1720117848272,-500.0,0.00022497,4]
[331173155,1720117848282,-3920.75,0.00022497,4]
[331173157,1720117848291,-1427.13,0.00022498,4]
[331173159,1720117848300,-1391.5,0.00022498,4]
[331173161,1720117848310,-649.35,0.00022498,4]
[331173163,1720117848319,-500.0,0.00022498,4]
[331173165,1720117848329,-300.0,0.00022499,2]
[331173167,1720117848338,-300.0,0.00022499,2]
[331173169,1720117848347,-300.0,0.00022499,2]
[331173171,1720117848356,-151.0,0.00022499,7]
[331173173,1720117848365,-157.762428,0.00022499,7]
[331173175,1720117848375,-157.762428,0.00022499,7]
[331173177,1720117848383,-243.883889,0.00022499,7]
[331173179,1720117848392,-243.883889,0.00022499,7]
[331173181,1720117848401,-293.46326508,0.00022499,4]
[331173183,1720117848411,-151.0,0.00022499,7]
[331173185,1720117848420,-151.0,0.00022499,7]
[331173187,1720117848429,-151.0,0.00022499,7]
[331173189,1720117848438,-151.0,0.00022499,7]
[331173191,1720117848448,-151.0,0.00022499,7]
[331173193,1720117848459,-169.93973,0.00022499,7]
[331173195,1720117848468,-169.93973,0.00022499,7]
[331173197,1720117848477,-151.0,0.00022499,7]
[331173199,1720117848486,-153.119028,0.00022499,7]
[331173201,1720117848495,-500.0,0.00022499,4]
[331173203,1720117848505,-500.0,0.00022499,4]
[331173205,1720117848514,-500.0,0.00022499,4]
[331173207,1720117848524,-500.0,0.00022499,4]
[331173209,1720117848533,-500.0,0.00022499,4]
[331173211,1720117848543,-500.0,0.00022499,4]
[331173213,1720117848553,-500.0,0.00022499,4]
[331173215,1720117848565,-500.0,0.00022499,4]
[331173217,1720117848577,-500.0,0.00022499,4]
[331173219,1720117848590,-616.50145582,0.00022499,4]
[331173221,1720117848600,-500.0,0.00022499,4]
[331173223,1720117848610,-500.0,0.00022499,4]
[331173225,1720117848620,-185.56210227,0.00022499,4]
[331173227,1720117848630,-500.0,0.00022499,4]
[331173230,1720117848640,-500.0,0.00022499,4]
[331173231,1720117848650,-500.0,0.00022499,4]
[331173234,1720117848661,-500.0,0.00022499,4]
[331173236,1720117848671,-500.0,0.00022499,4]
[331173237,1720117848680,-500.0,0.00022499,4]
[331173239,1720117848689,-500.0,0.00022499,4]
[331173241,1720117848698,-500.0,0.00022499,4]
[331173243,1720117848713,-500.0,0.00022499,4]
[331173245,1720117848723,-500.0,0.00022499,4]
[331173248,1720117848735,-500.0,0.00022499,4]
[331173250,1720117848744,-500.0,0.00022499,4]
[331173252,1720117848754,-500.0,0.00022499,4]
[331173254,1720117848763,-280.63403747,0.00022499,4]
[331173255,1720117848772,-151.0,0.00022499,7]
[331173258,1720117848782,-500.0,0.00022499,4]
[331173260,1720117848792,-500.0,0.00022499,4]
[331173262,1720117848801,-500.0,0.00022499,4]
[331173264,1720117848810,-500.0,0.00022499,4]
[331173266,1720117848819,-500.0,0.00022499,4]
[331173267,1720117848828,-500.0,0.00022499,4]
[331173270,1720117848837,-500.0,0.00022499,4]
[331173272,1720117848846,-500.0,0.00022499,4]
[331173274,1720117848855,-576.92255751,0.00022499,4]
[331173276,1720117848864,-500.0,0.00022499,4]
[331173279,1720117848873,-500.0,0.00022499,4]
[331173280,1720117848883,-500.0,0.00022499,4]
[331173282,1720117848892,-525.83205265,0.00022499,4]
[331173285,1720117848901,-500.0,0.00022499,4]
[331173287,1720117848910,-500.0,0.00022499,4]
[331173289,1720117848919,-500.0,0.00022499,4]
[331173291,1720117848928,-500.0,0.00022499,4]
[331173292,1720117848937,-500.0,0.00022499,4]
[331173294,1720117848946,-500.0,0.00022499,4]
[331173295,1720117848961,-500.0,0.00022499,4]
[331173296,1720117848969,-500.0,0.00022499,4]
[331173298,1720117848978,-500.0,0.00022499,4]
[331173300,1720117848987,-500.0,0.00022499,4]
[331173302,1720117848996,-155.1653222,0.00022499,4]
[331173304,1720117849006,-282.674538,0.00022499,7]
[331173305,1720117849015,-282.674538,0.00022499,7]
[331173306,1720117849024,-1427.13,0.00022499,4]
[331173307,1720117849033,-1427.13,0.00022499,4]
[331173308,1720117849042,-1427.13,0.00022499,4]
[331173310,1720117849052,-1427.13,0.00022499,4]
[331173312,1720117849061,-151.0,0.00022499,7]
[331173314,1720117849070,-1427.36,0.00022499,4]
[331173316,1720117849079,-500.0,0.00022499,4]
[331173317,1720117849088,-500.0,0.00022499,4]
[331173319,1720117849097,-500.0,0.00022499,4]
[331173321,1720117849106,-500.0,0.00022499,4]
[331173323,1720117849115,-500.0,0.00022499,4]
[331173325,1720117849124,-500.0,0.00022499,4]
[331173327,1720117849133,-500.0,0.00022499,4]
[331173329,1720117849142,-500.0,0.00022499,4]
[331173331,1720117849151,-500.0,0.00022499,4]
[331173333,1720117849160,-500.0,0.00022499,4]
[331173335,1720117849169,-500.0,0.00022499,4]
[331173337,1720117849178,-500.0,0.00022499,4]
[331173340,1720117849188,-500.0,0.00022499,4]
[331173342,1720117849197,-500.0,0.00022499,4]
[331173343,1720117849210,-152.34506416,0.00022499,2]
[331173345,1720117849219,-624.97413593,0.00022499,4]
[331173347,1720117849228,-500.0,0.00022499,4]
[331173349,1720117849237,-500.0,0.00022499,4]
[331173352,1720117849249,-500.0,0.00022499,4]
[331173354,1720117849258,-500.0,0.00022499,4]
[331173356,1720117849268,-500.0,0.00022499,4]
[331173358,1720117849277,-500.0,0.00022499,4]
[331173359,1720117849286,-151.0,0.00022499,7]
[331173361,1720117849295,-500.0,0.00022499,4]
[331173363,1720117849305,-500.0,0.00022499,4]
[331173365,1720117849314,-2260.054881,0.00022499,7]
[331173367,1720117849323,-151.0,0.00022499,7]
[331173369,1720117849332,-498.36356527,0.00022499,4]
[331173371,1720117849341,-2260.054881,0.00022499,7]
[331173373,1720117849351,-500.0,0.00022499,4]
[331173375,1720117849360,-500.0,0.00022499,4]
[331173377,1720117849369,-500.0,0.00022499,4]
[331173379,1720117849378,-500.0,0.00022499,4]
[331173381,1720117849387,-500.0,0.00022499,4]
[331173383,1720117849396,-320.35,0.00022499,4]
[331173385,1720117849406,-500.0,0.00022499,4]
[331173387,1720117849416,-500.0,0.00022499,4]
[331173389,1720117849425,-500.0,0.00022499,4]
[331173390,1720117849434,-151.0,0.00022499,7]
[331173391,1720117849443,-500.0,0.00022499,4]
[331173392,1720117849454,-500.0,0.00022499,4]
[331173393,1720117849463,-195.84398035,0.00022499,4]
[331173394,1720117849472,-500.0,0.00022499,4]
[331173395,1720117849481,-500.0,0.00022499,4]
[331173396,1720117849490,-500.0,0.00022499,4]
[331173397,1720117849500,-500.0,0.00022499,4]
[331173398,1720117849509,-500.0,0.00022499,4]
[331173399,1720117849518,-500.0,0.00022499,4]
[331173400,1720117849526,-500.0,0.00022499,4]
[331173401,1720117849535,-500.0,0.00022499,4]
[331173402,1720117849544,-500.0,0.00022499,4]
[331173403,1720117849553,-500.0,0.00022499,4]
[331173404,1720117849562,-500.0,0.00022499,4]
[331173405,1720117849573,-500.0,0.00022499,4]
[331173406,1720117849585,-500.0,0.00022499,4]
[331173407,1720117849594,-500.0,0.00022499,4]
[331173408,1720117849604,-231.0218988,0.00022499,4]
[331173409,1720117849614,-174.1375,0.00022499,7]
[331173410,1720117849624,-1191.94,0.00022499,4]
[331173411,1720117849633,-1191.94,0.00022499,4]
[331173412,1720117849642,-1191.94,0.00022499,4]
[331173413,1720117849656,-1191.94,0.00022499,4]
[331173414,1720117849665,-1191.94,0.00022499,4]
[331173415,1720117849675,-1192.02,0.00022499,4]
[331173416,1720117849684,-500.0,0.00022499,4]
[331173417,1720117849693,-500.0,0.00022499,4]
[331173418,1720117849704,-500.0,0.00022499,4]
[331173419,1720117849713,-500.0,0.00022499,4]
[331173420,1720117849722,-500.0,0.00022499,4]
[331173421,1720117849731,-500.0,0.00022499,4]
[331173422,1720117849741,-500.0,0.00022499,4]
[331173423,1720117849750,-500.0,0.00022499,4]
[331173424,1720117849760,-500.0,0.00022499,4]
[331173425,1720117849770,-500.0,0.00022499,4]
[331173426,1720117849779,-500.0,0.00022499,4]
[331173427,1720117849788,-500.0,0.00022499,4]
[331173428,1720117849797,-447.26152051,0.00022499,4]
[331173429,1720117849807,-219.768952,0.00022499,7]
[331173430,1720117849816,-1235.5,0.00022499,4]
[331173431,1720117849827,-1235.5,0.00022499,4]
[331173432,1720117849836,-500.0,0.00022499,4]
[331173433,1720117849845,-500.0,0.00022499,4]
[331173434,1720117849855,-1235.5,0.00022499,4]
[331173435,1720117849865,-500.0,0.00022499,4]
[331173436,1720117849874,-500.0,0.00022499,4]
[331173437,1720117849883,-1235.5,0.00022499,4]
[331173438,1720117849892,-500.0,0.00022499,4]
[331173439,1720117849901,-500.0,0.00022499,4]
[331173440,1720117849910,-500.0,0.00022499,4]
[331173441,1720117849920,-1457.296038,0.00022499,7]
[331173442,1720117849929,-500.0,0.00022499,4]
[331173444,1720117849938,-1235.5,0.00022499,4]
[331173446,1720117849948,-332.60220346,0.00022499,4]
[331173448,1720117849959,-500.0,0.00022499,4]
[331173450,1720117849968,-1235.57760752,0.00022499,4]
[331173452,1720117849977,-336.09752011,0.00022499,4]
[331173454,1720117849986,-1457.296038,0.00022499,7]
[331173456,1720117849995,-605.93929488,0.00022499,4]
[331173458,1720117850004,-293.841231,0.00022499,7]
[331173460,1720117850013,-1391.5,0.00022499,4]
[331173462,1720117850023,-1391.5,0.00022499,4]
[331173464,1720117850033,-649.35,0.00022499,4]
[331173466,1720117850042,-649.35,0.00022499,4]
[331173468,1720117850051,-1391.5,0.00022499,4]
[331173470,1720117850061,-649.35,0.00022499,4]
[331173472,1720117850071,-649.35,0.00022499,4]
[331173474,1720117850081,-1391.5,0.00022499,4]
[331173476,1720117850091,-649.35,0.00022499,4]
[331173478,1720117850100,-1391.58,0.00022499,4]
[331173480,1720117850110,-649.35,0.00022499,4]
[331173482,1720117850119,-649.35,0.00022499,4]
[331173484,1720117850128,-649.35,0.00022499,4]
[331173486,1720117850139,-649.35,0.00022499,4]
[331173488,1720117850148,-649.35,0.00022499,4]
[331173490,1720117850158,-649.35,0.00022499,4]
[331173492,1720117850167,-649.35,0.00022499,4]
[331173494,1720117850176,-649.35,0.00022499,4]
[331173496,1720117850185,-649.5857,0.00022499,4]
[331173498,1720117850194,-223.84138,0.00022499,7]
[331173500,1720117850206,-223.84138,0.00022499,7]
[331173506,1720117850248,-171.193417,0.00022499,7]
[331173508,1720117850258,-2000.0,0.00022499,2]
[331173510,1720117850268,-171.193417,0.00022499,7]
[331173512,1720117850277,-500.0,0.00022499,4]
[331173514,1720117850286,-500.0,0.00022499,4]
[331173516,1720117850295,-500.0,0.00022499,4]
[331173518,1720117850304,-500.0,0.00022499,4]
[331173520,1720117850313,-187.26,0.00022499,4]
[331173522,1720117850325,-150.0,0.00022499,2]
[331173524,1720117850333,-380.645891,0.00022499,7]
[331173526,1720117850343,-380.645891,0.00022499,7]
[331173528,1720117850352,-500.0,0.00022499,4]
[331173530,1720117850361,-225198.15641256,0.000225,7]
[331173533,1720117850381,-453.0,0.000225,7]
[331173535,1720117850392,-539.06283141,0.000225,7]
[331173537,1720117850403,-271.205,0.000225,7]
[331173540,1720117850414,-22665.29702753,0.000225,7]
[331173542,1720117850425,-600.77087884,0.000225,7]
[331173544,1720117850436,-60434.67705094,0.000225,7]
[331173546,1720117850446,-505.2624392,0.000225,7]
[331173549,1720117850462,-129277.24695469,0.000225,7]
[331173551,1720117850470,-20325.47989298,0.000225,5]
[331173553,1720117850481,-3363.1171214,0.000225,5]
[331173555,1720117850492,-881.21664269,0.000225,5]
[331173557,1720117850502,-358.515,0.000225,5]
[331173559,1720117850513,-102652.49559739,0.000225,5]
[331173568,1720117850591,-672.03487054,0.00020516,2]
[331173571,1720117850603,-636.17712946,0.00020516,2]
[331173572,1720117850612,-151.0,0.00022364,7]
[331173574,1720117850622,-701.77425809,0.00022484,4]
[331173577,1720117850633,-538.19574191,0.00022484,4]
[331173579,1720117850642,-173.542831,0.00022485,7]
[331173581,1720117850651,-500.0,0.00022499,4]
[331173583,1720117850661,-7.68142709,0.00022499,4]
[331173585,1720117850673,-297.59077079,0.00022499,4]
[331173587,1720117850684,-934.69780212,0.00022499,4]
[331173589,1720117850693,-430.81839788,0.00022499,4]
[331173591,1720117850705,-69.18160212,0.00022499,4]
[331173593,1720117850714,-1015.95938288,0.00022499,4]
[331173595,1720117850725,-224.01061712,0.00022499,4]
[331173597,1720117850734,-500.0,0.00022499,4]
[331173599,1720117850743,-500.0,0.00022499,4]
[331173601,1720117850752,-5.68097617,0.000225,5]
[331173603,1720117850763,-1134.31999994,0.000225,5]
[331173606,1720117850774,-912.45,0.000225,5]
[331173608,1720117850786,-86828.43229133,0.000225,5]
[331173610,1720117850797,-752.79796392,0.000225,5]
[331173612,1720117850808,-2440.23411396,0.000225,5]
[331173614,1720117850819,-6690.018384,0.000225,5]
[331173617,1720117850830,-33353.29963906,0.000225,5]
[331173619,1720117850842,-333.15664539,0.000225,5]
[331173691,1720117851610,-567.63859501,0.000225,5]
[331173693,1720117851622,-2198.591,0.000225,5]
[331173695,1720117851633,-938.09435475,0.000225,5]
[331173698,1720117851644,-54799.35804671,0.000225,5]
[331173707,1720117851727,-242.43380697,0.00018999,2]
[331173709,1720117851736,-360.0,0.00021463,2]
[331173711,1720117851745,-1000.0,0.00021817,2]
[331173713,1720117851754,-3173.3999109,0.00021879,2]
[331173715,1720117851763,-237.40957031,0.00021974,2]
[331173717,1720117851771,-153.13,0.00021978,2]
[331173719,1720117851781,-325.085,0.0002198,7]
[331173721,1720117851789,-500.0,0.00022499,4]
[331173723,1720117851798,-500.0,0.00022499,4]
[331173725,1720117851807,-500.0,0.00022499,4]
[331173727,1720117851817,-500.0,0.00022499,4]
[331173730,1720117851828,-18941.01231804,0.000225,5]
[331173732,1720117851840,-2720.01667567,0.000225,5]
[331173734,1720117851851,-962.79144002,0.000225,5]
[331173736,1720117851863,-307.44854805,0.000225,5]
[331173738,1720117851874,-2061.92318497,0.000225,5]
[331173741,1720117851885,-517.33837724,0.000225,5]
[331173743,1720117851897,-623.04947874,0.000225,5]
[331173745,1720117851907,-1919.57705919,0.000225,5]
[331173747,1720117851918,-1439.79747663,0.000225,5]
[331173749,1720117851929,-611.967,0.000225,5]
[331173751,1720117851940,-1494.82037085,0.000225,5]
[331173754,1720117851958,-453.46218221,0.000225,5]
[331173756,1720117851969,-71309.18045243,0.000225,5]
[331173759,1720117851980,-1346.35809449,0.000225,5]
[331173761,1720117851991,-8027.63642451,0.000225,5]
[331173763,1720117852002,-4731.15896742,0.000225,5]
[331173765,1720117852012,-4859.54795318,0.000225,5]
[331173767,1720117852023,-171725.44972269,0.000225,5]
[331173769,1720117852034,-8389.38794388,0.000225,5]
[331173772,1720117852044,-434.85070075,0.000225,5]
[331173784,1720117852153,-0.03789957,0.000225,5]
[331173786,1720117852164,-1542.7683886,0.000225,5]
[331173789,1720117852175,-371.88291753,0.000225,5]
[331173791,1720117852186,-536.415,0.000225,5]
[331173793,1720117852196,-457.37225202,0.000225,5]
[331173795,1720117852209,-3877.46310139,0.000225,5]
[331173818,1720117852402,-1014.8698506,0.00015082,2]
[331173820,1720117852414,-129.94060411,0.00015082,2]
[331173822,1720117852422,-128.37900503,0.00021463,2]
[331173824,1720117852433,-941.62099497,0.00021463,2]
[331173826,1720117852443,-325.085,0.00022,7]
[331173828,1720117852452,-325.085,0.00022364,7]
[331173830,1720117852461,-211.29485794,0.00022485,7]
[331173832,1720117852472,-113.79014206,0.00022485,7]
[331173834,1720117852481,-218.87916727,0.00022499,4]
[331173836,1720117852490,-1680.08069142,0.000225,5]
[331173839,1720117852511,-2007.07929185,0.000225,5]
[331173842,1720117852525,-650.09,0.000225,5]
[331173844,1720117852535,-66264.80930832,0.000225,5]
[331173846,1720117852546,-718.1047832,0.000225,5]
[331173848,1720117852558,-1023.03245475,0.000225,5]
[331173850,1720117852571,-382.84633833,0.000225,5]
[331174884,1720118072423,150.5,0.0001399,30]
[331174885,1720118072450,150.5,0.0001399,30]
[331174886,1720118072889,194.5,0.0001398,30]
[331174887,1720118072919,290.86,0.0001398,30]
[331174896,1720118104482,25278.91374249,0.00011199,2]
[331174917,1720118135464,183.41844134,0.00015,14]
[331174923,1720118142873,99524.76306988,0.000112,2]
[331174929,1720118154156,205.0,9.8e-05,2]
[331175013,1720118288418,13210.07069562,0.00011199,2]
[331175053,1720118369047,4454.52980697,0.00011199,2]
[331175073,1720118425299,6227.56607037,0.00011199,2]
[331175084,1720118456453,3388.83596778,0.00011199,2]
[331175116,1720118574700,2657.64241734,0.00011199,2]
[331175128,1720118643325,5954.1615955,0.00011199,2]
[331175129,1720118645987,1403.3064984,0.00011199,2]
[331175130,1720118648408,2226.11084423,0.00011199,2]
[331175136,1720118698658,1629.34600816,0.00011199,2]
[331175139,1720118720242,388.00771326,0.00011199,2]
[331175140,1720118726027,24921.38963061,0.00011199,2]
[331175149,1720118838248,1800.0,0.00011199,2]
[331175150,1720118840164,-173.44069593,0.00011699,2]
[331175164,1720118925373,970.95269333,0.00011199,2]
[331175168,1720118942188,-485.68364837,0.00011541,2]
[331175169,1720118942250,-485.68364835,0.0001157,2]
[331175170,1720118942304,-485.68364835,0.00011599,2]
[331175172,1720118942352,-155.27672255,0.000116,2]
[331175174,1720118942403,-257.80184351,0.00011641,2]
[331175175,1720118942450,-1254.55930407,0.00011699,2]
[331175176,1720118942498,-648.08,0.00011733,2]
[331175177,1720118942544,-785.90448529,0.000118,2]
[331175178,1720118942591,-1263.13633633,0.000118,2]
[331175179,1720118942648,-3699.78268287,0.000118,2]
[331175180,1720118942679,168.58,0.00010422,2]
[331175182,1720118947168,-9.21398692,0.000118,2]
[331175183,1720118947189,-258.88603077,0.00012273,2]
[331175184,1720118947212,-475.71197158,0.00012302,2]
[331175185,1720118947234,-556.72469797,0.00012302,2]
[331175186,1720118947256,-155.0,0.00012314,2]
[331175187,1720118947278,-155.0,0.00012314,2]
[331175188,1720118947299,-209.9852732,0.00012314,2]
[331175192,1720118972119,-844.6469,0.00012302,2]
[331175199,1720119032307,-2202.70693934,0.00012273,2]
[331175201,1720119032318,-261.86338318,0.00012301,2]
[331175204,1720119032331,-68.13661682,0.00012301,2]
[331175206,1720119032341,-155.0,0.00012302,2]
[331175209,1720119032351,-227.14852012,0.00012302,2]
[331175212,1720119032360,-407.22939857,0.00012302,2]
[331175214,1720119032371,-268.05851142,0.00012314,2]
[331175216,1720119032666,-56.64696103,0.00012314,2]
[331175217,1720119032676,-327.60462105,0.00012314,2]
[331175219,1720119032685,-208.98063509,0.00012314,2]
[331175221,1720119032694,-35.8393011,0.00013128,2]
[331175223,1720119032706,-252.21464358,0.00013128,2]
[331175225,1720119032715,-97.49471644,0.00013128,2]
[331175227,1720119032728,-108.74967243,0.00013128,2]
[331175229,1720119032740,-438.05939194,0.00013128,2]
[331175230,1720119032750,-303.59306389,0.00013472,2]
[331175231,1720119032762,-127.47431823,0.00013472,2]
[331175232,1720119032771,-150.0,0.00013507,2]
[331175233,1720119032780,-207.97,0.00013852,2]